bitfinex/quotes_SOLUSD_20241013
["timestamp","ask_amount","ask_price","bid_price","bid_amount"]
[1728825180447,6.7536,148.07,147.99,20.0]
[1728825180843,13.1712,148.08,147.99,20.0]
[1728825181151,13.1712,148.08,148.0,1.35115848]
[1728825181335,13.1712,148.08,147.99,20.0]
[1728825181728,13.1712,148.08,148.0,1.35115887]
[1728825183439,6.7536,148.07,148.0,1.35115887]
[1728825183956,6.4181,148.08,148.0,1.35115887]
[1728825184247,13.1715,148.08,147.99,20.0]
[1728825185033,6.7538,148.07,147.99,20.0]
[1728825185234,6.754,148.06,147.99,20.0]
[1728825185950,22.4985,148.05,147.97,20.0]
[1728825186149,22.4985,148.05,147.98,20.0]
[1728825188552,15.7441,148.05,147.98,28.90924343]
[1728825197954,15.7441,148.05,147.98,20.0]
[1728825202668,15.7441,148.05,147.98,28.90924278]
[1728825203948,15.7441,148.05,147.98,27.55791295]
[1728825205772,15.7441,148.05,147.98,28.90919644]
[1728825208070,15.7441,148.05,147.98,27.55791295]
[1728825208471,15.7441,148.05,147.98,28.9091949]
[1728825208975,6.5601,148.04,147.98,8.9091949]
[1728825209149,6.5601,148.04,147.93,23.776884]
[1728825209150,13.3151,148.04,147.93,23.776884]
[1728825209345,15.4229,148.01,147.91,24.48502476]
[1728825210775,6.5601,147.99,147.91,7.06652476]
[1728825211072,6.7577,147.98,147.88,24.00155706]
[1728825211370,6.7577,147.98,147.88,18.82221295]
[1728825211371,6.7581,147.97,147.88,18.82221295]
[1728825211946,15.4229,147.98,147.89,1.35204102]
[1728825212145,22.1806,147.98,147.89,1.35204102]
[1728825212886,22.1806,147.98,147.89,20.0]
[1728825213049,22.1806,147.98,147.9,1.35203841]
[1728825213771,15.4229,147.98,147.9,1.35203841]
[1728825213976,6.7581,147.97,147.89,20.0]
[1728825214178,6.7581,147.97,147.9,1.35210961]
[1728825214877,6.7581,147.97,147.89,21.35210923]
[1728825215898,6.7586,147.96,147.88,24.7724088]
[1728825216101,6.7586,147.96,147.89,21.35218279]
[1728825217107,15.4229,147.98,147.89,21.35218279]
[1728825217312,15.4229,147.98,147.91,20.0]
[1728825222115,22.1805,147.98,147.91,20.0]
[1728825222476,22.1805,147.98,147.92,1.3519348]
[1728825222896,22.1805,147.98,147.91,20.0]
[1728825224097,6.7581,147.97,147.88,4.7724088]
[1728825224416,6.7581,147.97,147.89,23.776884]
[1728825224715,6.7581,147.97,147.88,20.0]
[1728825224716,6.7586,147.96,147.88,20.0]
[1728825225290,6.7591,147.95,147.87,4.73629371]
[1728825225596,6.7591,147.95,147.86,20.0]
[1728825225801,6.7591,147.95,147.84,30.65495706]
[1728825226207,6.7595,147.94,147.84,30.65495706]
[1728825226601,6.7595,147.94,147.84,23.09704411]
[1728825226803,22.2137,147.94,147.85,23.776884]
[1728825227391,21.7123,147.94,147.86,20.0]
[1728825228407,6.7605,147.92,147.83,4.92136597]
[1728825228612,6.7605,147.92,147.82,20.0]
[1728825229004,6.7605,147.92,147.83,23.776884]
[1728825229514,6.7605,147.92,147.85,23.776884]
[1728825229720,6.7605,147.92,147.86,20.0]
[1728825230308,6.7605,147.92,147.86,21.35238122]
[1728825230514,6.7605,147.92,147.86,20.0]
[1728825230809,6.7608,147.92,147.86,20.0]
[1728825231321,6.7608,147.92,147.84,20.0]
[1728825232525,21.7123,147.94,147.84,20.0]
[1728825232722,6.7613,147.9,147.82,1.35264958]
[1728825233023,6.7613,147.9,147.83,1.35267038]
[1728825233623,6.7609,147.91,147.83,8.91058333]
[1728825234013,6.7609,147.91,147.83,1.35267038]
[1728825235129,6.7609,147.91,147.83,23.776884]
[1728825235325,6.7609,147.91,147.84,20.0]
[1728825235901,21.7123,147.94,147.85,1.35256851]
[1728825236100,6.7604,147.92,147.85,1.35256851]
[1728825240528,21.7123,147.94,147.86,23.776884]
[1728825240706,21.7123,147.94,147.87,20.0]
[1728825240910,28.4719,147.94,147.87,20.0]
[1728825241840,6.76,147.93,147.87,20.0]
[1728825245328,6.76,147.93,147.82,20.0]
[1728825245925,21.7123,147.94,147.82,20.0]
[1728825246257,21.7123,147.94,147.82,27.55791295]
[1728825246555,21.7123,147.94,147.84,20.0]
[1728825246771,21.7123,147.94,147.85,23.776884]
[1728825247049,21.7123,147.94,147.86,20.0]
[1728825247551,6.7599,147.93,147.86,20.0]
[1728825249663,6.7607,147.92,147.86,1.35227706]
[1728825250227,6.7607,147.92,147.84,1.35244459]
[1728825252430,6.761,147.91,147.85,20.0]
[1728825254053,21.7123,147.94,147.84,20.0]
[1728825254054,6.762,147.89,147.84,20.0]
[1728825254261,15.9369,147.9,147.84,20.0]
[1728825254560,22.6983,147.9,147.84,20.0]
[1728825255271,22.6983,147.9,147.84,21.35256693]
[1728825260947,15.9369,147.9,147.84,21.35256693]
[1728825261459,15.9369,147.9,147.86,20.0]
[1728825261775,6.2581,147.94,147.87,1.35227849]
[1728825263343,15.9369,147.95,147.89,20.0]
[1728825263666,15.9369,147.95,147.9,1.35199656]
[1728825264266,12.9105,147.98,147.9,1.35199656]
[1728825264972,12.9105,147.98,147.9,23.776884]
[1728825266267,12.9105,147.98,147.91,1.35190245]
[1728825266759,12.9105,147.98,147.9,23.776884]
[1728825268056,12.9105,147.98,147.91,1.35190188]
[1728825269744,6.1525,147.98,147.91,21.35190132]
[1728825270260,15.9369,147.99,147.93,20.0]
[1728825270568,15.9369,147.99,147.94,1.35171919]
[1728825270751,15.9369,147.99,147.92,1.35175147]
[1728825271749,22.6941,147.99,147.93,20.0]
[1728825276447,22.6941,147.99,147.94,1.35167]
[1728825276647,15.9369,147.99,147.94,1.35167]
[1728825277048,15.9369,147.99,147.93,20.0]
[1728825277564,15.9369,147.99,147.94,1.3516685]
[1728825278371,6.1525,148.02,147.95,20.0]
[1728825278372,12.9084,148.02,147.95,20.0]
[1728825278568,12.9084,148.02,147.96,1.35151002]
[1728825279149,6.7563,148.01,147.96,1.35151002]
[1728825282358,6.7563,148.01,147.95,20.0]
[1728825285057,6.1525,148.02,147.92,24.8892155]
[1728825285375,6.7573,147.99,147.94,20.0]
[1728825285683,6.7573,147.99,147.92,23.776884]
[1728825286455,6.7566,148.01,147.93,1.35165807]
[1728825286984,6.7566,148.01,147.93,21.35165807]
[1728825288475,6.7566,148.01,147.93,20.0]
[1728825288980,6.7566,148.01,147.94,1.35159067]
[1728825291177,6.7566,148.01,147.93,20.0]
[1728825291373,6.7566,148.01,147.94,1.35158229]
[1728825291982,6.7566,148.01,147.94,23.776884]
[1728825294313,6.7566,148.01,147.95,1.35157186]
[1728825295492,6.7566,148.01,147.95,20.0]
[1728825300204,12.9085,148.02,147.95,21.35156964]
[1728825300416,6.1525,148.02,147.97,20.0]
[1728825300884,12.9083,148.02,147.97,20.0]
[1728825301084,6.7567,148.01,147.94,20.0]
[1728825305213,6.7572,147.99,147.94,20.0]
[1728825305398,22.2084,147.99,147.91,24.85197872]
[1728825306111,15.4512,147.99,147.87,11.2643]
[1728825306311,6.7577,147.98,147.87,11.2643]
[1728825306620,15.4512,147.99,147.89,1.35177709]
[1728825306798,15.4512,147.99,147.9,7.55771382]
[1728825307193,15.4512,147.99,147.91,1.35164061]
[1728825307506,15.4512,147.99,147.93,20.0]
[1728825307712,15.4512,147.99,147.94,1.35156107]
[1728825308716,12.9084,148.02,147.94,1.35156107]
[1728825312518,12.9084,148.02,147.93,20.0]
[1728825312719,12.9084,148.02,147.91,18.82201382]
[1728825312720,6.7563,148.01,147.95,20.0]
[1728825317143,12.9083,148.02,147.95,20.0]
[1728825318731,6.7564,148.01,147.94,23.776884]
[1728825320230,6.7564,148.01,147.94,20.0]
[1728825321538,15.114,147.99,147.9,6.4821]
[1728825321721,6.7577,147.98,147.88,18.82201382]
[1728825321921,6.7582,147.97,147.88,18.82201382]
[1728825322735,6.7577,147.98,147.88,18.82201382]
[1728825323241,6.7577,147.98,147.9,20.0]
[1728825323612,6.7577,147.98,147.92,20.0]
[1728825324310,6.7577,147.98,147.9,20.0]
[1728825324516,6.7577,147.98,147.92,20.0]
[1728825325442,6.7577,147.98,147.9,20.0]
[1728825325638,6.7577,147.98,147.92,20.0]
[1728825326235,6.7577,147.98,147.9,20.0]
[1728825326615,15.114,147.99,147.92,20.0]
[1728825327254,6.758,147.98,147.9,20.0]
[1728825329261,6.758,147.98,147.91,1.35188623]
[1728825330057,6.758,147.98,147.92,20.0]
[1728825331660,6.758,147.98,147.74,2.0]
[1728825331661,6.7592,147.95,147.87,7.04472941]
[1728825331867,15.114,147.94,147.85,11.2643]
[1728825332640,15.114,147.94,147.85,15.96254832]
[1728825333139,15.114,147.94,147.87,20.0]
[1728825334176,15.114,147.94,147.86,23.776884]
[1728825335537,15.114,147.94,147.87,20.0]
[1728825335741,21.8735,147.94,147.87,20.0]
[1728825337266,6.7602,147.93,147.85,4.69824832]
[1728825337459,6.7602,147.93,147.84,20.0]
[1728825337460,6.7602,147.93,147.87,1.35242236]
[1728825337763,6.7602,147.93,147.85,1.35233248]
[1728825338638,21.8735,147.94,147.86,23.776884]
[1728825338842,21.8735,147.94,147.87,21.35223183]
[1728825340670,21.8735,147.94,147.87,20.0]
[1728825343974,15.114,147.94,147.88,1.35224711]
[1728825345068,15.114,147.94,147.89,23.776884]
[1728825345447,15.114,147.94,147.9,1.35202692]
[1728825345656,15.114,147.94,147.88,23.776884]
[1728825345848,15.114,147.94,147.89,20.0]
[1728825346047,15.114,147.94,147.9,1.35202595]
[1728825346346,15.114,147.94,147.89,20.0]
[1728825346767,15.114,147.94,147.9,1.35201791]
[1728825347451,28.0513,147.98,147.9,1.35201791]
[1728825351272,6.7585,147.97,147.89,20.0]
[1728825353352,21.2936,147.98,147.91,20.0]
[1728825353780,21.2936,147.98,147.92,1.35178831]
[1728825354168,21.2936,147.98,147.91,20.0]
[1728825354570,21.2936,147.98,147.92,1.35178741]
[1728825355486,15.1606,147.98,147.94,20.0]
[1728825355854,15.1606,147.98,147.93,23.776884]
[1728825356258,15.1606,147.98,147.94,20.0]
[1728825356972,15.1606,147.98,147.93,23.776884]
[1728825357186,15.1606,147.98,147.9,20.0]
[1728825357361,15.1606,147.98,147.92,20.0]
[1728825359078,16.5023,148.04,147.97,23.776884]
[1728825359283,16.5023,148.04,147.98,1.35127768]
[1728825359792,16.5023,148.04,147.98,21.35127768]
[1728825360382,16.5023,148.04,147.98,20.0]
[1728825362082,16.5023,148.04,147.99,1.35121356]
[1728825362895,16.5023,148.04,147.98,20.0]
[1728825363387,16.5023,148.04,147.99,1.35121356]
[1728825363586,16.5023,148.04,147.98,20.0]
[1728825365267,16.5023,148.04,147.99,1.3512137]
[1728825370483,6.3586,148.06,147.99,1.3512137]
[1728825371708,6.3586,148.06,148.01,20.0]
[1728825371917,6.3586,148.06,148.02,1.3509461]
[1728825372487,23.2554,148.08,148.02,1.3509461]
[1728825373494,16.5023,148.08,148.02,1.3509461]
[1728825375299,16.5023,148.08,148.03,20.0]
[1728825376515,16.5023,148.08,148.01,20.0]
[1728825376713,16.5023,148.08,148.03,20.0]
[1728825377099,16.5023,148.08,148.0,23.776884]
[1728825377296,16.5023,148.08,148.02,23.776884]
[1728825377698,16.5023,148.08,148.03,21.35078432]
[1728825378213,16.5023,148.08,148.03,20.0]
[1728825378785,16.5023,148.08,148.04,1.35078428]
[1728825385295,16.5023,148.08,148.03,20.0]
[1728825386017,16.5023,148.08,148.03,21.35073866]
[1728825386201,16.5023,148.08,148.03,20.0]
[1728825389626,16.5023,148.08,148.04,1.35073855]
[1728825391940,16.5023,148.08,148.03,20.0]
[1728825392313,6.0128,148.1,148.03,20.0]
[1728825392522,6.0128,148.1,148.04,1.35068328]
[1728825397219,6.0128,148.1,148.05,20.0]
[1728825397738,6.0128,148.1,148.03,20.0]
[1728825397921,6.0128,148.1,148.05,20.0]
[1728825398122,6.0128,148.1,148.03,20.0]
[1728825398735,6.0128,148.1,148.05,20.0]
[1728825399235,6.0128,148.1,148.03,20.0]
[1728825399636,6.0128,148.1,148.05,20.0]
[1728825400042,6.0128,148.1,148.06,1.35064531]
[1728825400538,6.0128,148.1,148.04,1.35064518]
[1728825401237,6.0128,148.1,148.05,20.0]
[1728825401744,6.0128,148.1,148.03,20.0]
[1728825402041,6.0128,148.1,148.05,20.0]
[1728825402341,6.0128,148.1,148.03,20.0]
[1728825402517,6.0128,148.1,148.04,23.776884]
[1728825407247,15.8542,148.11,148.04,23.776884]
[1728825408826,15.8542,148.11,148.06,23.776884]
[1728825409150,22.2183,148.15,148.09,20.0]
[1728825409349,22.2183,148.15,148.1,1.35023728]
[1728825410146,22.2183,148.15,148.09,20.0]
[1728825417242,22.2183,148.15,148.08,28.68967052]
[1728825417841,22.2183,148.15,148.09,20.0]
[1728825418763,15.8542,148.15,148.1,23.776884]
[1728825430166,6.7492,148.17,148.1,23.776884]
[1728825433272,6.7494,148.16,148.11,20.0]
[1728825434366,6.749,148.17,148.12,23.776884]
[1728825435775,22.9976773,148.19,148.12,23.776884]
[1728825436067,29.7458773,148.19,148.13,1.34987441]
[1728825437071,6.7486,148.18,148.13,1.34987441]
[1728825438564,6.7486,148.18,148.12,23.776884]
[1728825440050,6.7486,148.18,148.13,1.3498472]
[1728825440469,6.7486,148.18,148.12,23.776884]
[1728825441198,22.9976773,148.19,148.12,23.776884]
[1728825441401,6.7491,148.17,148.12,23.776884]
[1728825441572,29.7458773,148.19,148.13,1.34986759]
[1728825442273,6.7485,148.18,148.13,1.34986759]
[1728825443386,29.7458773,148.19,148.13,1.34986759]
[1728825444077,16.8261773,148.19,148.14,23.776884]
[1728825444268,16.8261773,148.19,148.15,1.34968933]
[1728825444476,0.8262773,148.19,148.15,21.34968933]
[1728825445292,0.8262773,148.19,148.16,1.34959324]
[1728825446573,0.8262773,148.19,148.16,23.776884]
[1728825452602,7.5746773,148.19,148.16,23.776884]
[1728825452781,0.8262773,148.19,148.16,23.776884]
[1728825454404,0.8262773,148.19,148.15,23.776884]
[1728825454895,0.8262773,148.19,148.11,43.776884]
[1728825455079,7.5743773,148.19,148.11,20.0]
[1728825455496,6.7493,148.17,148.1,4.87537365]
[1728825455698,6.7493,148.17,148.08,11.2643]
[1728825456791,6.7493,148.17,148.09,20.0]
[1728825456992,6.7499,148.15,148.08,11.2643]
[1728825457299,6.7499,148.15,148.06,8.35215827]
[1728825457804,6.7503,148.14,148.06,4.76498871]
[1728825458001,6.7503,148.14,148.05,11.2643]
[1728825459804,6.7509,148.13,148.05,11.2643]
[1728825460008,16.2861,148.12,148.01,18.31015156]
[1728825460707,23.0374,148.12,148.01,18.31015156]
[1728825461011,23.0374,148.12,148.02,8.86634125]
[1728825461395,23.0374,148.12,148.03,20.0]
[1728825461985,23.0374,148.12,148.04,1.35049264]
[1728825462691,16.2861,148.12,148.06,20.0]
[1728825463012,16.2861,148.12,148.07,1.35039734]
[1728825465716,16.2861,148.12,148.06,20.0]
[1728825467917,16.2861,148.12,148.07,1.35042095]
[1728825469014,16.2861,148.12,148.06,20.0]
[1728825469196,16.2861,148.12,148.07,1.35042056]
[1728825471622,6.7499,148.15,148.08,23.776884]
[1728825471825,16.2614,148.16,148.09,21.35019859]
[1728825471998,23.0111,148.16,148.09,21.35019859]
[1728825472517,16.2614,148.16,148.09,21.35019859]
[1728825472815,23.0109,148.16,148.09,20.0]
[1728825473217,23.0109,148.16,148.1,1.35014717]
[1728825474118,23.0109,148.16,148.11,23.776884]
[1728825474119,16.2614,148.16,148.11,23.776884]
[1728825474310,16.2614,148.16,148.12,1.34996113]
[1728825474626,16.2614,148.16,148.11,23.776884]
[1728825474817,16.2614,148.16,148.12,1.34994406]
[1728825476001,6.7486,148.18,148.12,1.34994406]
[1728825477224,6.7486,148.18,148.12,21.34994406]
[1728825477431,7.5744773,148.19,148.12,21.34994406]
[1728825482117,7.5744773,148.19,148.12,20.0]
[1728825483441,0.8262773,148.19,148.13,1.34988404]
[1728825484105,0.8262773,148.19,148.15,20.0]
[1728825484310,0.8262773,148.19,148.16,1.34967382]
[1728825488032,0.8262773,148.19,148.16,23.776884]
[1728825489246,0.8262773,148.19,148.17,1.34952599]
[1728825489534,0.8262773,148.19,148.16,23.776884]
[1728825492022,0.8262773,148.19,148.17,1.34952735]
[1728825492223,0.8262773,148.19,148.16,23.776884]
[1728825500236,0.8262773,148.19,148.17,1.34952929]
[1728825500540,0.8262773,148.19,148.16,23.776884]
[1728825500722,0.8262773,148.19,148.17,1.34951874]
[1728825501045,0.8262773,148.19,148.16,23.776884]
[1728825501234,0.8262773,148.19,148.17,1.34951865]
[1728825502639,0.8262773,148.19,148.16,23.776884]
[1728825507450,16.1955773,148.2,148.16,23.776884]
[1728825508645,16.1955773,148.2,148.15,23.776884]
[1728825516141,16.1955773,148.2,148.15,28.65882881]
[1728825519047,16.1955773,148.2,148.15,23.776884]
[1728825521068,16.1955773,148.2,148.16,1.34960402]
[1728825521245,16.1955773,148.2,148.15,23.776884]
[1728825522163,22.9431773,148.2,148.12,4.77812184]
[1728825522469,22.9431773,148.2,148.14,20.0]
[1728825523341,22.9431773,148.2,148.11,20.0]
[1728825524148,22.9431773,148.2,148.13,20.0]
[1728825524347,22.9431773,148.2,148.14,1.34982744]
[1728825525775,22.9431773,148.2,148.13,20.0]
[1728825526065,6.7481,148.19,148.13,20.0]
[1728825526446,6.7482,148.19,148.13,20.0]
[1728825529068,0.09018788,148.17,148.13,20.0]
[1728825530661,0.09018788,148.17,148.1,4.84253516]
[1728825530865,0.09018788,148.17,148.12,20.0]
[1728825532879,0.09018788,148.17,148.12,21.35001628]
[1728825535177,0.09018788,148.17,148.12,20.0]
[1728825535678,0.09018788,148.17,148.13,1.34990736]
[1728825535856,0.09018788,148.17,148.12,20.0]
[1728825538085,0.09018788,148.17,148.13,1.34990764]
[1728825545160,0.09018788,148.17,148.14,23.776884]
[1728825546174,0.09018788,148.17,148.13,23.776884]
[1728825549703,0.09018788,148.17,148.14,1.34979163]
[1728825550395,0.09018788,148.17,148.13,23.776884]
[1728825551697,0.09018788,148.17,148.14,1.34976819]
[1728825551874,0.09018788,148.17,148.13,23.776884]
[1728825553696,0.09018788,148.17,148.13,25.12665161]
[1728825555596,0.09018788,148.17,148.13,23.776884]
[1728825557499,0.09018788,148.17,148.14,1.3497703]
[1728825558397,0.09018788,148.17,148.13,23.776884]
[1728825561099,0.09018788,148.17,148.12,23.776884]
[1728825561277,0.09018788,148.17,148.13,20.0]
[1728825572281,0.09018788,148.17,148.08,7.0553405]
[1728825572535,15.8251,148.16,148.09,20.0]
[1728825572714,15.8251,148.16,148.08,20.0]
[1728825573701,15.8251,148.16,148.1,20.0]
[1728825573910,15.8251,148.16,148.11,23.776884]
[1728825574115,15.8251,148.16,148.12,20.0]
[1728825578215,15.8251,148.16,148.12,21.3500608]
[1728825580192,0.09018788,148.17,148.12,21.3500608]
[1728825580403,0.09018788,148.17,148.16,20.0]
[1728825580713,0.09018788,148.17,148.16,45.12646342]
[1728825580884,0.09018788,148.17,148.1,6.1511]
[1728825581088,0.09018788,148.17,148.11,45.12665657]
[1728825581410,0.09018788,148.17,148.11,43.776884]
[1728825581796,0.09018788,148.17,148.14,20.0]
[1728825582003,0.09018788,148.17,148.15,1.34971556]
[1728825582316,0.09018788,148.17,148.11,43.776884]
[1728825582317,0.09018788,148.17,148.14,20.0]
[1728825582503,0.09018788,148.17,148.15,1.34971603]
[1728825583484,0.09018788,148.17,148.13,23.776884]
[1728825583689,0.09018788,148.17,148.14,21.34971695]
[1728825587415,0.09018788,148.17,148.15,23.776884]
[1728825587609,0.09018788,148.17,148.16,45.12644068]
[1728825587919,0.09018788,148.17,148.16,43.776884]
[1728825592624,0.09018788,148.17,148.11,20.0]
[1728825592830,0.09018788,148.17,148.14,23.776884]
[1728825593130,0.09018788,148.17,148.15,20.0]
[1728825593929,0.09018788,148.17,148.16,1.34965569]
[1728825595504,0.09018788,148.17,148.16,25.12653969]
[1728825595724,0.09018788,148.17,148.16,45.12653969]
[1728825596512,0.09018788,148.17,148.16,25.12653969]
[1728825596713,0.09018788,148.17,148.16,45.12653969]
[1728825597234,0.09018788,148.17,148.16,43.776884]
[1728825599726,0.09018788,148.17,148.07,35.55772822]
[1728825600027,0.09018788,148.17,148.09,4.86287639]
[1728825600233,0.09018788,148.17,148.07,43.07355315]
[1728825600411,0.09018788,148.17,148.08,7.51582493]
[1728825600730,0.09018788,148.17,148.09,1.3498671]
[1728825601118,0.09018788,148.17,148.09,21.3498671]
[1728825601632,0.09018788,148.17,148.1,23.776884]
[1728825601816,0.09018788,148.17,148.12,23.776884]
[1728825602017,0.09018788,148.17,148.13,20.0]
[1728825603328,0.09018788,148.17,148.14,1.3498687]
[1728825615731,0.09018788,148.17,148.11,4.89958852]
[1728825616051,0.09018788,148.17,148.01,16.4566]
[1728825616052,0.09018788,148.17,148.07,18.0779]
[1728825617239,0.09018788,148.17,148.08,20.0]
[1728825617442,0.09018788,148.17,148.09,23.776884]
[1728825617943,0.09018788,148.17,148.11,23.776884]
[1728825620041,0.09018788,148.17,148.12,1.34992572]
[1728825620224,0.09018788,148.17,148.13,23.776884]
[1728825620423,0.09018788,148.17,148.14,1.34982611]
[1728825623332,0.09018788,148.17,148.15,23.776884]
[1728825623849,0.09018788,148.17,148.11,4.74639699]
[1728825623850,0.09018788,148.17,148.16,23.776884]
[1728825624855,0.09018788,148.17,148.16,43.776884]
[1728825626847,0.09018788,148.17,148.16,23.776884]
[1728825627230,0.09018788,148.17,148.16,43.776884]
[1728825634154,16.4566,148.19,148.17,23.776884]
[1728825634355,16.4566,148.19,148.18,1.34955778]
[1728825634658,16.4566,148.19,148.17,1.34955698]
[1728825636640,16.4566,148.19,148.17,23.776884]
[1728825638542,16.4566,148.19,148.11,23.776884]
[1728825638752,16.4566,148.19,148.13,23.776884]
[1728825639254,16.4566,148.19,148.15,23.776884]
[1728825639653,16.4566,148.19,148.16,20.0]
[1728825654359,16.4566,148.19,148.17,1.34962055]
[1728825654755,16.4566,148.19,148.16,20.0]
[1728825655357,16.4566,148.19,148.17,1.34962121]
[1728825655664,16.4566,148.19,148.16,20.0]
[1728825656561,16.4566,148.19,148.17,1.34958968]
[1728825656755,16.4566,148.19,148.16,20.0]
[1728825657656,16.4566,148.19,148.17,1.34958679]
[1728825658554,14.8699,148.19,148.17,1.34958679]
[1728825658763,14.8699,148.19,148.16,20.0]
[1728825658947,14.8699,148.19,148.17,1.34958566]
[1728825660646,14.8699,148.19,148.16,20.0]
[1728825660845,14.8699,148.19,148.16,21.34958694]
[1728825665767,22.3055,148.23,148.17,23.776884]
[1728825665970,15.5592,148.23,148.18,1.34953094]
[1728825666972,15.5592,148.23,148.17,1.34949079]
[1728825670381,15.5592,148.23,148.16,20.0]
[1728825670382,15.5592,148.23,148.19,20.0]
[1728825672584,15.5592,148.23,148.18,23.776884]
[1728825675181,15.5592,148.23,148.17,23.776884]
[1728825675354,15.5592,148.23,148.18,20.0]
[1728825675774,15.5592,148.23,148.14,8.73655882]
[1728825675975,15.3883,148.19,148.09,15.79067358]
[1728825676161,6.7489,148.18,148.09,20.56221763]
[1728825676361,6.7489,148.18,148.1,10.08659071]
[1728825676684,15.3883,148.19,148.1,10.08659071]
[1728825677256,15.3883,148.19,148.11,20.0]
[1728825677460,15.3883,148.19,148.12,1.34983486]
[1728825677661,15.3883,148.19,148.12,10.08639368]
[1728825677861,15.3883,148.19,148.13,20.0]
[1728825678085,15.3883,148.19,148.14,1.34983457]
[1728825681977,15.3883,148.19,148.11,1.34983906]
[1728825682177,15.3883,148.19,148.13,20.0]
[1728825682391,15.3883,148.19,148.14,1.34983851]
[1728825682981,15.3883,148.19,148.13,20.0]
[1728825686399,22.1364,148.19,148.13,20.0]
[1728825687802,15.3883,148.19,148.15,20.0]
[1728825688104,15.3883,148.23,148.16,23.776884]
[1728825688306,15.3883,148.23,148.14,20.0]
[1728825688490,15.3883,148.23,148.15,23.776884]
[1728825689185,15.3883,148.23,148.16,21.34965772]
[1728825690001,15.3883,148.23,148.17,30.0]
[1728825690208,15.3883,148.23,148.18,1.34954856]
[1728825691090,15.3883,148.23,148.18,31.34954856]
[1728825692475,15.3883,148.23,148.18,1.34954856]
[1728825692680,15.3883,148.23,148.16,20.0]
[1728825692910,15.3883,148.23,148.17,23.776884]
[1728825694584,15.3883,148.23,148.18,1.34954975]
[1728825694782,15.3883,148.23,148.17,23.776884]
[1728825695113,15.3883,148.23,148.18,1.34954958]
[1728825695487,15.3883,148.23,148.18,31.34954958]
[1728825697185,15.3883,148.23,148.18,30.0]
[1728825697484,15.3883,148.23,148.18,31.34955021]
[1728825697713,15.3883,148.23,148.18,30.0]
[1728825698516,15.3883,148.23,148.17,23.776884]
[1728825699100,15.3883,148.23,148.18,1.34954981]
[1728825699696,15.3883,148.23,148.18,1.3495478]
[1728825701611,15.3883,148.23,148.18,30.0]
[1728825702617,30.0,148.19,148.17,23.776884]
[1728825702819,15.3883,148.23,148.17,23.776884]
[1728825704317,15.3883,148.23,148.13,24.76418165]
[1728825704514,15.3883,148.23,148.14,23.776884]
[1728825704714,15.3883,148.23,148.15,20.0]
[1728825704918,15.3883,148.23,148.17,20.0]
[1728825705504,15.3883,148.23,148.17,21.34956867]
[1728825706623,15.3883,148.23,148.18,23.776884]
[1728825707639,15.3883,148.23,148.19,21.34936669]
[1728825707932,15.3883,148.23,148.19,20.0]
[1728825709029,6.6393,148.24,148.2,1.34930618]
[1728825709329,15.9833,148.27,148.2,1.34930618]
[1728825709498,15.9833,148.27,148.2,23.776884]
[1728825710812,22.7277,148.27,148.2,23.776884]
[1728825711428,15.9833,148.27,148.2,23.776884]
[1728825711623,15.9833,148.27,148.21,1.34921457]
[1728825712130,15.9833,148.27,148.2,23.776884]
[1728825712333,15.4301,148.3,148.23,20.0]
[1728825712520,15.4301,148.3,148.24,1.34897616]
[1728825712725,15.4301,148.3,148.21,23.776884]
[1728825712910,6.7452,148.26,148.17,24.82344349]
[1728825713108,15.4301,148.28,148.17,24.82344349]
[1728825713435,6.7453,148.26,148.17,4.82344349]
[1728825713612,6.7453,148.26,148.12,6.1254]
[1728825713821,6.7453,148.26,148.15,21.76135882]